bitfinex/quotes_ETHUSD_20260207
["timestamp","ask_amount","ask_price","bid_price","bid_amount"]
[1770498532830,1.51499809,2102.2,2101.7,0.03349122]
[1770498533035,1.51499809,2102.2,2101.7,1.22296423]
[1770498533931,1.51499809,2102.2,2101.7,0.03349122]
[1770498534115,1.51499809,2102.2,2101.7,1.22299851]
[1770498535009,1.51499809,2102.2,2101.5,1.18962645]
[1770498536538,1.51699809,2102.0,2101.5,1.18962645]
[1770498536828,1.51699809,2102.0,2101.7,0.03349122]
[1770498537007,0.002,2102.0,2101.8,1.18945665]
[1770498537434,0.002,2102.2,2101.8,1.18945665]
[1770498540035,0.002,2102.2,2102.0,0.03349122]
[1770498541306,0.002,2102.6,2102.1,1.1892869]
[1770498541510,0.002,2102.6,2102.3,0.03349122]
[1770498542632,0.002,2102.8,2102.3,0.03349122]
[1770498542932,0.002,2103.2,2102.9,0.03349122]
[1770498543136,1.51699809,2103.4,2102.9,0.03349122]
[1770498543363,1.51499809,2104.0,2103.3,1.18860837]
[1770498543516,1.51499809,2104.0,2103.5,0.03349122]
[1770498545048,0.002,2104.3,2103.5,0.03349122]
[1770498545348,0.002,2104.3,2103.6,1.18843886]
[1770498545847,0.002,2104.3,2103.8,0.03349122]
[1770498547655,0.002,2104.3,2103.8,1.1882858]
[1770498547819,0.95559849,2104.3,2103.8,1.1882858]
[1770498548736,0.95559849,2104.3,2103.6,1.18843624]
[1770498548929,0.002,2104.1,2103.7,1.18838028]
[1770498549841,0.002,2104.1,2103.3,1.18860837]
[1770498550028,0.002,2104.1,2103.5,0.03349122]
[1770498552150,0.002,2104.1,2103.9,1.1882694]
[1770498556161,0.002,2104.3,2103.9,1.1882694]
[1770498556331,0.004,2104.3,2103.9,1.1882694]
[1770498560865,0.004,2104.3,2104.0,0.001]
[1770498561238,0.002,2104.1,2104.0,0.001]
[1770498561435,0.002,2104.3,2104.0,0.001]
[1770498561661,0.002,2104.3,2104.2,1.18809999]
[1770498562739,0.004,2104.3,2104.1,1.18811488]
[1770498562943,0.002,2104.2,2104.1,1.18811488]
[1770498563141,0.002,2104.3,2104.1,1.18811488]
[1770498563357,0.002,2104.2,2104.1,1.18811488]
[1770498563761,0.002,2104.3,2104.0,0.001]
[1770498563946,0.004,2104.3,2104.0,0.001]
[1770498564576,0.004,2104.3,2104.1,0.03349122]
[1770498566662,0.002,2104.2,2104.0,1.18917513]
[1770498566870,0.90356005,2104.3,2103.8,1.18928669]
[1770498567239,0.90356005,2104.3,2103.8,0.001]
[1770498567438,0.90356005,2104.3,2103.5,1.18846312]
[1770498567936,0.90356005,2104.3,2102.9,0.03449122]
[1770498568141,0.90356005,2104.3,2103.2,1.18865423]
[1770498568349,0.90356005,2104.3,2103.3,1.18859002]
[1770498568866,0.90156005,2104.1,2103.1,4.75483786]
[1770498569361,0.90156005,2104.1,2103.1,1.18872141]
[1770498571461,1.18821292,2104.0,2103.1,1.18872141]
[1770498571644,0.90156005,2103.9,2103.1,1.18872141]
[1770498572562,0.90156005,2103.9,2102.9,0.03449122]
[1770498572766,0.90156005,2103.9,2102.9,0.001]
[1770498573545,0.90156005,2103.7,2103.3,0.001]
[1770498576471,0.94121947,2103.8,2103.3,0.001]
[1770498578569,0.94121947,2103.7,2103.3,0.001]
[1770498579552,0.94121947,2103.7,2103.0,0.001]
[1770498579756,0.94121947,2103.5,2102.4,1.18907125]
[1770498580852,0.94121947,2103.3,2102.0,4.79083928]
[1770498581055,0.94121947,2103.3,2102.6,0.03349122]
[1770498582471,0.94121947,2103.3,2102.9,0.03349122]
[1770498583980,0.94121947,2103.3,2102.9,1.22231777]
[1770498585788,0.94121947,2103.3,2102.9,0.03349122]
[1770498585984,0.94121947,2103.3,2102.9,1.22232243]
[1770498586179,0.94121947,2103.3,2103.1,0.001]
[1770498586684,0.94321947,2103.6,2103.1,0.001]
[1770498586993,0.002,2103.6,2103.1,0.001]
[1770498587763,0.94321947,2104.1,2103.5,0.03349122]
[1770498588388,0.94321947,2104.1,2103.5,1.22194705]
[1770498588689,0.94121947,2104.0,2103.1,1.18972089]
[1770498588901,0.94121947,2104.0,2103.1,0.001]
[1770498590488,0.94121947,2103.8,2103.1,0.001]
[1770498592475,0.94121947,2103.6,2103.1,0.001]
[1770498593065,0.94121947,2103.8,2103.2,0.03349122]
[1770498593259,2.1294732,2104.0,2103.2,0.03349122]
[1770498594603,0.94121947,2103.9,2103.3,1.18860837]
[1770498595997,0.94321947,2104.1,2103.3,1.18860837]
[1770498596879,2.13138027,2104.1,2103.3,1.18860837]
[1770498597683,0.94321947,2104.1,2103.3,1.18860837]
[1770498597882,2.13137689,2104.1,2103.3,1.18860837]
[1770498598081,0.94121947,2104.0,2103.3,1.18860837]
[1770498598992,0.002,2104.1,2103.5,0.03349122]
[1770498599496,0.94321947,2103.7,2103.3,0.001]
[1770498601086,0.94121947,2103.5,2103.3,0.001]
[1770498601675,2.13164634,2103.7,2103.3,0.001]
[1770498601903,0.94121947,2103.6,2103.3,0.001]
[1770498603205,0.94321947,2103.7,2103.3,0.001]
[1770498603499,0.002,2103.7,2103.3,0.001]
[1770498603697,0.002,2103.7,2103.4,0.03349122]
[1770498604586,0.002,2103.7,2103.3,0.001]
[1770498605209,0.002,2103.7,2103.3,1.18960837]
[1770498611341,0.92049643,2103.7,2103.0,0.001]
[1770498611793,0.98874819,2103.5,2103.0,0.001]
[1770498612704,0.002,2103.6,2103.1,0.03349122]
[1770498613021,0.002,2103.6,2103.3,0.001]
[1770498614424,0.99074819,2103.6,2103.3,0.001]
[1770498614920,0.99074819,2103.6,2103.0,0.001]
[1770498615321,0.99074819,2103.6,2102.4,1.19008313]
[1770498615894,0.99074819,2103.6,2102.4,0.001]
[1770498616321,0.98874819,2103.4,2102.4,0.001]
[1770498616710,0.98874819,2103.4,2102.8,0.03349122]
[1770498616914,2.1792057,2103.6,2102.8,0.03349122]
[1770498617116,0.98874819,2103.5,2102.8,0.03349122]
[1770498617828,0.98874819,2103.5,2102.5,0.03349122]
[1770498618201,0.002,2103.6,2102.8,0.03349122]
[1770498618520,1.19044963,2103.6,2102.9,1.18883446]
[1770498618925,0.98874819,2103.5,2102.9,1.18883446]
[1770498619929,2.17919782,2103.6,2102.9,1.18883446]
[1770498620598,0.99074819,2103.6,2102.9,1.18883446]
[1770498620815,0.002,2103.6,2103.1,0.03349122]
[1770498622995,0.002,2103.6,2103.2,1.18866489]
[1770498625224,0.002,2103.6,2103.3,0.001]
[1770498626526,0.002,2103.6,2103.4,0.03349122]
[1770498627430,0.002,2103.6,2103.5,1.18849536]
[1770498627806,0.002,2103.8,2103.5,1.18849536]
[1770498627999,0.002,2104.1,2103.7,0.03349122]
[1770498628224,0.004,2104.0,2103.5,1.18849536]
[1770498628503,0.99274819,2104.0,2103.5,1.18849536]
[1770498629815,0.99274819,2104.0,2103.3,4.75498145]
[1770498631839,0.98874819,2104.0,2103.3,4.75498145]
[1770498633242,0.99274819,2103.9,2103.3,1.18960837]
[1770498633419,0.99274819,2103.9,2103.3,0.001]
[1770498634533,0.98874819,2103.8,2103.3,0.001]
[1770498637835,0.002,2103.7,2103.3,0.001]
[1770498638207,0.004,2103.6,2103.3,0.001]
[1770498638410,0.004,2103.6,2103.4,0.03349122]
[1770498638613,0.002,2103.9,2103.4,0.03349122]
[1770498638855,0.002,2103.9,2103.7,0.03349122]
[1770498640059,0.002,2103.9,2103.4,0.03349122]
[1770498640425,0.002,2103.9,2103.5,1.18849536]
[1770498640627,0.96093644,2103.9,2103.4,1.18853899]
[1770498641139,0.006,2103.9,2103.5,0.03349122]
[1770498641358,0.002,2103.9,2103.8,0.03349122]
[1770498642457,0.002,2103.9,2103.8,1.2218171]
[1770498646825,0.002,2103.9,2103.8,1.18832588]
[1770498647731,0.006,2103.9,2103.6,1.18843886]
[1770498648133,0.002,2104.1,2103.6,1.18843886]
[1770498650772,0.002,2103.9,2103.6,1.18843886]
[1770498655165,0.95693644,2103.9,2103.6,1.18843886]
[1770498655338,0.95693644,2103.9,2103.5,0.001]
[1770498655655,0.95693644,2103.9,2103.3,4.75529752]
[1770498655656,0.95493644,2103.8,2103.3,0.001]
[1770498656740,0.002,2103.9,2103.4,0.03349122]
[1770498657337,0.95693644,2103.9,2103.4,0.03349122]
[1770498657537,0.95693644,2103.9,2103.5,1.18849536]
[1770498661669,0.95693644,2103.9,2103.4,4.78766615]
[1770498661670,0.95693644,2103.9,2103.4,1.22200437]
[1770498662378,0.002,2104.3,2103.8,0.48700191]
[1770498662564,0.002,2104.3,2103.7,0.03449122]
[1770498662872,0.002,2104.3,2104.0,0.03349122]
[1770498663240,0.002,2104.3,2103.7,0.03449122]
[1770498663874,0.002,2104.3,2103.7,0.52149313]
[1770498664874,0.002,2104.3,2104.0,1.22167587]
[1770498666348,0.002,2104.3,2104.0,1.18818465]
[1770498669449,0.95819191,2104.6,2104.0,1.18818465]
[1770498671374,0.90679729,2104.7,2104.0,1.18818465]
[1770498672882,0.90479729,2104.6,2104.0,1.18818465]
[1770498674988,0.90479729,2104.6,2104.2,0.001]
[1770498675154,0.002,2104.4,2104.2,0.001]
[1770498676194,0.90679729,2104.4,2104.2,0.001]
[1770498677754,0.002,2104.4,2104.2,0.001]
[1770498678285,0.90679729,2104.4,2104.2,0.001]
[1770498680585,0.002,2104.4,2104.2,0.001]
[1770498680794,0.90679729,2104.6,2104.2,0.001]
[1770498680795,0.002,2104.6,2104.2,0.001]
[1770498681088,0.002,2104.6,2104.3,0.52049313]
[1770498681470,0.002,2104.8,2104.3,0.52049313]
[1770498681471,0.002,2104.8,2104.4,0.48700191]
[1770498681661,0.002,2104.8,2104.7,0.03349122]
[1770498681986,0.002,2105.2,2104.7,0.03349122]
[1770498682290,0.004,2105.0,2104.7,0.03349122]
[1770498682493,0.002,2105.0,2104.7,0.03349122]
[1770498682787,0.90879729,2105.0,2104.5,1.18793062]
[1770498683199,0.004,2105.0,2104.6,0.52049313]
[1770498683497,0.90479729,2105.7,2105.3,0.03349122]
[1770498683796,0.34640263,2105.8,2105.3,0.03349122]
[1770498684500,0.90479729,2106.1,2105.3,0.03349122]
[1770498684681,0.90479729,2106.1,2105.6,0.03349122]
[1770498684989,2.09165914,2106.4,2105.6,0.03349122]
[1770498685194,0.90679729,2105.9,2105.4,0.03349122]
[1770498685378,0.002,2105.9,2105.3,1.18743813]
[1770498685593,0.002,2105.9,2105.4,0.03349122]
[1770498685965,0.002,2105.9,2105.3,1.18743813]
[1770498687073,0.002,2105.9,2105.3,1.67444004]
[1770498687275,0.002,2105.9,2105.5,0.48700191]
[1770498688490,0.002,2105.9,2105.3,1.18743813]
[1770498688697,0.002,2105.9,2104.0,0.03449122]
[1770498688698,0.90679729,2105.9,2104.8,0.52049313]
[1770498688865,0.90479729,2105.8,2104.9,1.18870487]
[1770498689065,0.90479729,2105.6,2104.9,0.001]
[1770498691301,0.90479729,2105.4,2104.9,0.001]
[1770498693502,0.90479729,2105.3,2104.9,0.001]
[1770498696706,0.94045685,2105.2,2104.6,0.001]
[1770498697903,0.94045685,2105.1,2104.6,0.001]
[1770498699612,0.94045685,2105.5,2104.6,0.001]
[1770498699977,0.94045685,2105.3,2104.6,0.001]
[1770498700179,0.002,2105.7,2105.0,0.03349122]
[1770498701108,0.94245685,2105.7,2105.0,0.03349122]
[1770498702028,0.94245685,2105.7,2105.1,1.18759203]
[1770498702187,0.002,2105.2,2105.1,1.18759203]
[1770498702383,0.002,2105.7,2105.1,1.18759203]
[1770498703211,0.002,2105.7,2105.3,0.03349122]
[1770498704107,0.002,2105.7,2105.4,1.18742281]
[1770498706697,0.94245685,2105.7,2105.1,1.18755946]
[1770498707102,0.94245685,2105.7,2105.2,1.18751898]
[1770498707417,0.002,2105.7,2105.3,1.18744921]
[1770498707992,0.002,2105.7,2105.4,1.18741712]
[1770498708993,0.002,2105.7,2105.1,1.18759203]
[1770498710594,0.94245685,2105.7,2105.0,1.18760781]
[1770498710795,0.94245685,2105.7,2105.0,1.1876422]
[1770498711016,0.94045685,2105.5,2104.9,1.18766665]
[1770498711631,0.002,2105.7,2105.1,0.48800191]
[1770498711934,0.002,2105.7,2105.2,0.03349122]
[1770498713108,0.002,2105.7,2105.3,1.18747921]
[1770498713325,0.94245685,2105.7,2104.8,4.75191693]
[1770498713541,0.94245685,2105.7,2105.0,1.18764245]
[1770498713697,0.94245685,2105.5,2104.9,1.18766706]
[1770498714204,0.94245685,2105.5,2105.0,1.18764212]
[1770498714396,0.94245685,2105.5,2105.0,1.18764573]
[1770498714798,0.94245685,2105.5,2104.8,1.18873218]
[1770498715193,1.18742281,2105.4,2104.8,0.001]
[1770498715409,2.12787966,2105.4,2104.8,0.001]
[1770498715905,0.94045685,2105.3,2104.8,0.001]
[1770498716504,0.94045685,2105.4,2104.8,0.001]
[1770498721336,0.002,2105.5,2105.3,1.18747921]
[1770498721627,0.002,2105.5,2105.2,1.18750018]
[1770498722130,0.002,2105.5,2105.2,1.2209914]
[1770498722814,0.002,2105.7,2105.2,1.2209914]
[1770498723731,0.94245685,2105.7,2105.2,1.2209914]
[1770498725024,0.94245685,2105.7,2105.2,1.18750018]
[1770498725742,0.94245685,2105.7,2105.0,1.18764845]
[1770498725916,0.94245685,2105.7,2105.0,1.22113967]
[1770498726119,0.94245685,2105.7,2105.4,0.001]
[1770498726638,0.002,2105.5,2105.4,0.001]
[1770498726848,0.92702014,2105.5,2105.4,0.001]
[1770498727536,0.002,2105.7,2105.4,0.001]
[1770498729113,0.002,2105.7,2105.5,0.03349122]
[1770498729513,0.002,2105.9,2105.5,0.03349122]
[1770498729924,0.002,2105.9,2105.6,1.18731003]
[1770498731915,0.92502014,2106.0,2105.4,0.001]
[1770498732234,0.92502014,2106.0,2105.5,0.03349122]
[1770498732743,0.002,2106.1,2105.8,0.03349122]
[1770498734226,0.002,2106.1,2105.5,0.03349122]
[1770498734430,0.99858233,2106.1,2105.7,1.18722547]
[1770498734629,0.99858233,2106.1,2105.6,1.18726675]
[1770498735120,0.99858233,2106.1,2105.7,1.18725014]
[1770498737529,0.99658233,2105.9,2105.4,0.001]
[1770498739229,0.99658233,2105.9,2105.6,0.001]
[1770498739429,0.99658233,2105.7,2105.6,0.001]
[1770498739764,0.99658233,2105.7,2105.4,0.001]
[1770498740257,0.99658233,2105.7,2105.1,0.001]
[1770498741144,0.99658233,2105.7,2105.2,0.03349122]
[1770498741650,0.002,2105.9,2105.5,0.03349122]
[1770498742239,0.99658233,2105.8,2105.2,1.18749276]
[1770498743553,0.99658233,2105.8,2105.1,0.001]
[1770498743749,0.99658233,2105.7,2105.1,0.001]
[1770498744758,0.99658233,2105.6,2105.1,0.001]
[1770498745355,0.99658233,2105.8,2105.1,0.001]
[1770498746155,1.18914167,2105.9,2105.3,0.99884633]
[1770498746156,0.002,2105.9,2105.3,0.99884633]
[1770498746357,0.002,2106.1,2105.6,0.99884633]
[1770498746528,0.99858233,2106.1,2105.3,0.03349122]
[1770498746731,0.99858233,2106.1,2105.3,0.99884633]
[1770498746956,0.002,2106.1,2105.6,0.99884633]
[1770498748060,0.002,2106.1,2105.7,1.18725364]
[1770498751141,0.002,2106.1,2104.8,0.03449122]
[1770498751142,0.99658233,2106.0,2104.8,0.03449122]
[1770498751343,0.002,2106.1,2105.4,1.18839199]
[1770498751861,0.002,2105.9,2105.4,0.001]
[1770498752164,0.99858233,2105.9,2105.4,0.001]
[1770498753062,0.002,2105.9,2105.4,0.001]
[1770498755167,0.002,2105.9,2105.4,0.03449122]
[1770498756145,0.002,2105.9,2105.5,1.18736642]
[1770498757859,0.002,2105.9,2105.5,2.14972035]
[1770498760975,0.34451415,2106.9,2106.1,0.99584515]
[1770498761139,0.34451415,2106.9,2106.5,0.96235393]
[1770498761459,4.74541592,2107.3,2106.5,0.96235393]
[1770498761663,1.18643452,2107.2,2106.4,0.03349122]
[1770498762239,1.1863522,2107.3,2106.5,1.18680275]
[1770498763745,0.002,2106.7,2106.5,1.18680275]
[1770498764794,1.18632735,2107.4,2106.6,0.96235393]
[1770498766532,0.93423707,2107.6,2106.8,0.99584515]
[1770498766533,1.18621342,2107.6,2106.8,0.99584515]
[1770498767162,1.18810547,2107.8,2106.8,0.99584515]
[1770498767342,0.93423707,2107.7,2106.7,1.18669008]
[1770498767540,0.93423707,2107.7,2106.7,2.14904401]
[1770498768053,0.93423707,2107.7,2106.7,2.18253523]
[1770498768258,0.93423707,2107.7,2106.8,0.96235393]
[1770498768758,0.002,2107.8,2106.9,2.14893136]
[1770498769064,0.93423707,2107.7,2106.9,2.14893136]
[1770498769566,0.002,2107.8,2107.0,0.96235393]
[1770498769942,0.93623707,2107.8,2107.0,0.96235393]
[1770498770139,0.002,2107.8,2107.0,0.99584515]
[1770498770766,0.002,2107.8,2107.2,0.96235393]
[1770498772272,0.002,2107.8,2107.1,1.1864648]
[1770498772445,0.002,2107.8,2107.1,2.14881873]
[1770498773463,0.002,2107.8,2107.4,0.96235393]
[1770498773667,1.18588124,2108.2,2107.4,0.96235393]
[1770498774998,2.11994756,2108.5,2107.4,0.96235393]
[1770498775275,0.93423707,2108.4,2107.5,3.317]
[1770498775856,2.12002656,2108.3,2107.5,4.50318789]
[1770498776063,0.93423707,2108.2,2107.5,4.50318789]
[1770498777353,0.002,2108.0,2107.5,4.50318789]
[1770498777575,0.93623707,2108.0,2107.6,3.317]
[1770498777771,2.12221666,2108.0,2107.3,1.18631056]
[1770498778087,0.93623707,2108.0,2107.7,3.317]
[1770498780585,0.93623707,2108.0,2107.2,1.38737477]
[1770498780586,0.93423707,2107.9,2107.2,1.38737477]
[1770498780759,0.93423707,2107.9,2107.6,3.317]
[1770498781080,2.11997032,2108.5,2107.6,4.27935393]
[1770498781279,1.18573325,2108.4,2107.7,0.96235393]
[1770498782186,1.18573325,2108.4,2107.6,3.317]
[1770498782683,1.18573325,2108.4,2107.6,4.50317215]
[1770498782981,0.93423707,2108.3,2107.2,4.94657374]
[1770498783174,0.93423707,2108.3,2107.3,1.18631283]
[1770498783374,0.93423707,2108.3,2107.4,1.18629125]
[1770498783754,0.93423707,2108.3,2107.2,1.38737094]
[1770498784182,0.93423707,2108.3,2107.2,0.201]
[1770498784765,0.93423707,2108.1,2107.2,0.201]
[1770498787489,0.91015673,2107.9,2107.2,0.201]
[1770498788897,1.18578949,2108.3,2107.3,0.94223525]
[1770498789193,0.91015673,2108.2,2107.2,1.38740244]
[1770498789484,0.91015673,2108.2,2107.2,2.32963769]
[1770498789983,1.18590199,2108.1,2107.2,2.32963769]
[1770498790359,2.09605872,2108.1,2107.2,2.32963769]
[1770498790663,0.91015673,2108.0,2107.2,2.32963769]
[1770498790880,0.91015673,2108.0,2107.4,0.001]
[1770498791060,0.002,2107.9,2107.4,0.001]
[1770498792378,1.18801451,2107.9,2107.4,0.001]
[1770498793489,0.98964358,2107.8,2107.4,0.001]
[1770498794269,1.18612705,2107.7,2107.4,0.001]
[1770498796372,2.17577063,2107.7,2107.4,0.001]
[1770498796973,1.18612705,2107.7,2107.4,0.001]
[1770498798385,4.74429835,2107.8,2107.4,0.001]
[1770498805081,5.73394193,2107.8,2107.4,0.001]
[1770498805397,0.98964358,2107.7,2107.2,0.201]
[1770498806201,0.98964358,2107.7,2107.1,0.001]
[1770498807299,1.18618333,2107.6,2107.1,0.001]
[1770498807880,2.17582691,2107.6,2107.1,0.001]
[1770498809498,0.98964358,2107.5,2107.1,0.001]
[1770498809702,0.98964358,2107.5,2106.2,0.92138735]
[1770498810005,0.98964358,2107.5,2106.4,0.92138735]
[1770498811079,0.98964358,2107.5,2106.2,0.92138735]
[1770498811679,0.98964358,2107.3,2106.2,0.92138735]
[1770498812301,0.98964358,2107.3,2106.2,2.10835648]
[1770498812503,0.98964358,2107.3,2106.3,0.92138735]
[1770498812810,1.1862959,2107.4,2106.3,0.92138735]
[1770498813832,0.98964358,2107.5,2106.5,0.92138735]
[1770498814710,0.98964358,2107.5,2106.3,1.18688452]
[1770498814916,0.98964358,2107.5,2106.4,0.92138735]
[1770498815913,1.1862959,2107.4,2106.5,1.18680275]
[1770498816185,1.1862959,2107.4,2106.6,0.98583645]
[1770498817130,1.18607078,2107.8,2106.6,0.98583645]
[1770498817291,2.08699471,2107.8,2106.6,0.98583645]
[1770498817491,2.08899471,2107.8,2106.6,0.98583645]
[1770498818026,2.08899471,2107.8,2106.8,0.98583645]
[1770498818801,1.18807078,2107.8,2106.8,0.98583645]
[1770498819490,2.08899471,2107.8,2106.8,0.98583645]
[1770498820416,0.90092393,2107.7,2106.9,0.98583645]
[1770498820810,0.90092393,2107.7,2106.7,0.98583645]
[1770498822417,2.08710726,2107.6,2106.7,0.98583645]
[1770498825515,0.90092393,2107.5,2106.7,0.98583645]
[1770498826808,1.1862959,2107.4,2106.7,0.98583645]
[1770498827408,2.08721983,2107.4,2106.5,2.17359981]
[1770498827718,2.08721983,2107.4,2106.6,2.17258132]
[1770498828108,2.08721983,2107.4,2106.6,0.98583645]
[1770498830101,1.1862959,2107.4,2106.8,0.98683645]
[1770498830618,1.18629152,2107.5,2106.8,0.98683645]
[1770498831932,1.18822166,2107.6,2106.8,0.98683645]
[1770498832131,0.002,2107.6,2107.0,0.98583645]
[1770498834134,0.002,2107.6,2107.2,0.98583645]
[1770498836239,0.002,2107.6,2107.3,0.98583645]
[1770498837618,0.90292393,2107.6,2106.9,1.18654461]
[1770498837825,0.90292393,2107.6,2106.8,0.001]
[1770498838545,1.18623962,2107.5,2106.8,0.001]
[1770498838748,2.08716355,2107.5,2106.8,0.001]
[1770498839043,0.90092393,2107.4,2106.8,0.001]
[1770498840457,1.1863522,2107.3,2106.8,0.001]
[1770498840843,1.1863522,2107.3,2106.9,0.98583645]
[1770498841164,1.18623962,2107.5,2106.9,0.98583645]
[1770498842755,5.64785327,2107.6,2106.8,2.17346972]
[1770498842963,5.64785327,2107.6,2106.9,0.98583645]
[1770498843123,4.74692934,2107.6,2106.9,0.98583645]
[1770498843323,4.74692934,2107.6,2107.0,0.001]
[1770498843523,0.002,2107.4,2107.0,0.001]
[1770498846766,1.1863522,2107.3,2107.0,0.001]
[1770498850760,1.18832765,2107.4,2107.0,0.001]
[1770498851358,0.002,2107.4,2107.0,0.001]
[1770498851656,1.18829778,2107.4,2107.0,0.96180338]
[1770498851829,1.18829778,2107.4,2107.0,0.001]
[1770498852661,0.002,2107.4,2107.0,0.001]
[1770498853363,0.002,2107.4,2107.0,0.96180338]
[1770498856367,0.002,2107.4,2107.2,0.001]
[1770498859275,0.002,2107.4,2107.0,0.96180338]
[1770498859276,0.9405528,2107.4,2107.0,0.001]
[1770498859442,5.24924247,2107.4,2107.0,0.001]
[1770498860281,0.002,2107.4,2107.0,0.001]
[1770498860451,0.002,2107.4,2107.0,0.96180338]
[1770498860845,0.002,2107.4,2107.0,2.14831984]
[1770498861057,0.002,2107.4,2107.0,0.96180338]
[1770498861258,0.002,2107.4,2107.1,0.96080338]
[1770498866597,0.9405528,2107.4,2107.0,0.001]
[1770498868158,1.1863522,2107.3,2107.0,0.001]
[1770498869982,0.002,2107.2,2107.0,0.001]
[1770498870352,0.002,2107.2,2107.0,0.96180338]
[1770498871276,0.002,2107.4,2107.1,0.96080338]
[1770498872760,0.002,2107.4,2107.1,2.14726083]
[1770498873063,0.002,2107.4,2107.1,0.96080338]
[1770498873263,0.002,2107.4,2107.2,0.96080338]
[1770498880482,0.002,2107.4,2107.0,2.13415912]
[1770498880678,0.002,2107.4,2107.0,0.001]
[1770498880872,0.91075902,2107.4,2107.0,0.001]
[1770498881073,1.18831234,2107.4,2107.0,0.001]
[1770498881491,0.002,2107.4,2107.0,0.001]
[1770498882398,0.002,2107.4,2107.2,0.001]
[1770498883073,0.90875902,2106.9,2105.7,0.001]
[1770498883274,0.1024,2106.3,2105.4,0.001]
[1770498883484,0.91175902,2105.4,2104.8,0.001]
[1770498883793,0.90875902,2105.4,2104.8,0.001]
[1770498883979,0.90875902,2105.4,2104.9,0.03349122]
[1770498884187,2.01246083,2105.3,2104.8,0.001]
[1770498884369,2.01246083,2105.3,2104.6,0.001]
[1770498884570,2.01246083,2105.3,2104.8,0.03349122]
[1770498884980,0.90875902,2105.3,2104.8,0.03349122]
[1770498885175,1.18753562,2105.2,2104.6,0.001]
[1770498885867,0.90875902,2105.1,2104.6,0.001]
[1770498886062,0.90875902,2105.1,2104.5,0.001]
[1770498886268,0.90875902,2105.1,2104.3,0.001]
[1770498886469,0.90875902,2105.1,2104.4,0.03349122]
[1770498886798,0.90875902,2105.1,2104.3,0.001]
[1770498887092,0.90875902,2105.1,2104.4,0.03049122]
[1770498887287,0.90875902,2105.1,2104.2,0.001]
[1770498887288,0.90875902,2104.9,2104.2,0.001]
[1770498888108,0.90875902,2104.5,2102.9,0.24806719]
[1770498888274,0.90875902,2104.2,2103.4,0.001]
[1770498888469,0.90875902,2104.2,2103.0,0.001]
[1770498888800,0.90875902,2103.7,2102.5,0.98017281]
[1770498888996,0.90875902,2103.7,2102.8,0.03349122]
[1770498889195,6.22328564,2103.4,2102.5,0.03349122]
[1770498889505,0.48194493,2103.3,2102.5,0.03349122]
[1770498890296,0.48194493,2103.3,2102.8,0.03349122]
[1770498890590,0.48194493,2103.3,2102.3,4.756685]
[1770498890800,0.48194493,2103.3,2102.6,0.03349122]
[1770498890965,0.48194493,2103.3,2102.3,0.94668159]
[1770498891170,1.18866489,2103.2,2102.5,0.03349122]
[1770498891403,0.50211333,2103.1,2102.5,0.03349122]
[1770498892667,0.50211333,2103.1,2102.8,0.03349122]
[1770498892871,0.29446671,2103.0,2102.8,0.03349122]
[1770498893091,2.09720709,2103.6,2103.2,0.03349122]
[1770498893401,2.09720709,2103.6,2102.9,0.03349122]
[1770498893570,2.09720709,2103.6,2103.1,0.03349122]
[1770498893772,2.09720709,2103.6,2102.9,0.03349122]
[1770498894495,2.09720709,2103.6,2103.2,0.03349122]
[1770498894701,2.09720709,2103.6,2102.9,0.03349122]
[1770498895292,0.002,2103.1,2102.9,0.03349122]
[1770498896177,0.002,2104.0,2103.8,0.03349122]
[1770498896706,0.90875902,2106.1,2105.1,0.03349122]
[1770498896906,1.18674641,2106.6,2105.9,0.03349122]
[1770498897126,0.90875902,2107.7,2106.5,0.03349122]
[1770498897280,0.90875902,2107.7,2106.0,0.94668159]
[1770498897281,0.002,2107.6,2106.7,1.18669008]
[1770498897607,0.90875902,2108.7,2107.2,0.03349122]
[1770498897776,4.74176831,2109.0,2107.7,0.03349122]
[1770498898103,5.65052733,2109.0,2107.8,0.03349122]
[1770498898404,5.65052733,2109.0,2108.1,0.03349122]
[1770498900096,5.65052733,2109.0,2107.8,0.03349122]
[1770498900285,0.90875902,2107.7,2106.1,1.18699927]
[1770498900477,5.31452662,2107.1,2105.8,0.03349122]
[1770498900681,0.97370178,2107.0,2105.8,0.03349122]
[1770498901002,0.97370178,2107.0,2105.7,0.94668159]
[1770498901307,5.31452662,2106.7,2105.3,0.98017281]
[1770498901485,1.18674641,2106.6,2105.3,0.03349122]
[1770498901988,1.18674641,2106.6,2105.6,0.03349122]
[1770498903483,4.74551875,2107.3,2105.6,0.03349122]
[1770498903484,1.2888648,2107.1,2105.9,0.03349122]
[1770498903679,1.1864648,2107.1,2105.9,0.03349122]
[1770498904213,0.90875902,2107.0,2105.5,1.18732183]
[1770498904414,0.90875902,2107.0,2105.7,0.03349122]
[1770498905488,1.18657743,2106.9,2105.7,0.03349122]
[1770498906284,1.18657743,2106.9,2105.6,1.18730842]
[1770498906487,1.18657743,2106.9,2105.5,1.18733514]
[1770498906795,2.109143,2106.9,2105.5,1.18733514]
[1770498907294,0.92256557,2106.8,2105.4,0.03349122]
[1770498907626,0.92256557,2106.4,2104.9,1.22119097]
[1770498908226,0.92256557,2106.4,2104.9,0.03349122]
[1770498908612,0.92256557,2106.4,2104.9,1.22119104]
[1770498908788,1.18680275,2106.5,2105.5,0.03349122]
[1770498909301,1.18680275,2106.5,2105.2,0.94323311]
[1770498909302,1.18680275,2106.5,2105.2,0.90974189]
[1770498909617,1.18680275,2106.5,2105.3,0.03349122]
[1770498909913,4.74721101,2106.6,2105.4,1.18742281]
[1770498914618,0.98565428,2106.6,2105.4,1.18742281]
[1770498915916,0.98565428,2106.6,2105.2,1.18750722]
[1770498916822,1.18680275,2106.5,2105.5,0.03349122]
[1770498917027,1.18680275,2106.5,2105.5,0.98816297]
[1770498918003,1.18680275,2106.5,2105.2,0.98816297]
[1770498918201,1.18680275,2106.5,2105.5,0.03349122]
[1770498919138,4.74721101,2106.7,2105.6,1.18731003]
[1770498919454,1.18861298,2106.9,2106.1,0.98816297]
[1770498919735,0.002,2106.4,2106.1,0.98816297]